fUSD/lending_fUSD_20260401
["ID","MTS","AMOUNT","RATE_DAILY","PERIOD"]
[419232736,1775026256949,-151.0,0.00039726,120]
[419232737,1775026256959,-4126.945995,0.00039726,120]
[419232738,1775026256968,-151.0,0.00039726,120]
[419232739,1775026256978,-383.21547,0.00039726,120]
[419232740,1775026256988,-151.0,0.00039726,120]
[419232741,1775026256997,-151.0,0.00039726,120]
[419232742,1775026257007,-383.21547,0.00039726,120]
[419232743,1775026257017,-175.208189,0.00039726,120]
[419232744,1775026257027,-151.0,0.00039726,120]
[419232745,1775026257036,-175.208189,0.00039726,120]
[419232746,1775026257046,-151.0,0.00039726,120]
[419232747,1775026257055,-1940.200176,0.00039726,120]
[419232748,1775026257065,-1194.257938,0.00039726,120]
[419232749,1775026257075,-151.0,0.00039726,2]
[419232750,1775026257084,-4126.945995,0.00039726,120]
[419232751,1775026257094,-151.0,0.00039726,120]
[419232752,1775026257104,-1940.200176,0.00039726,120]
[419232753,1775026257113,-1194.257938,0.00039726,120]
[419232754,1775026257123,-151.0,0.00039726,2]
[419232755,1775026257132,-151.0,0.00039726,120]
[419232756,1775026257142,-383.21547,0.00039726,120]
[419232757,1775026257151,-151.0,0.00039726,120]
[419232758,1775026257161,-383.21547,0.00039726,120]
[419232759,1775026257170,-151.0,0.00039726,120]
[419232760,1775026257180,-1194.257938,0.00039726,120]
[419232761,1775026257190,-1940.200176,0.00039726,120]
[419232762,1775026257199,-151.0,0.00039726,120]
[419232763,1775026257208,-151.0,0.00039726,120]
[419232764,1775026257218,-4126.945995,0.00039726,120]
[419232765,1775026257227,-288.23131,0.00039726,120]
[419232766,1775026257236,-1940.200176,0.00039726,120]
[419232767,1775026257246,-1194.257938,0.00039726,120]
[419232768,1775026257256,-255.890544,0.00039726,120]
[419232769,1775026257265,-383.21547,0.00039726,120]
[419232770,1775026257274,-288.23131,0.00039726,120]
[419232771,1775026257284,-383.21547,0.00039726,120]
[419232772,1775026257293,-151.0,0.00039726,120]
[419232773,1775026257302,-151.0,0.00039726,120]
[419232774,1775026257312,-151.0,0.00039726,120]
[419232775,1775026257321,-151.0,0.00039726,120]
[419232776,1775026257330,-1940.200176,0.00039726,120]
[419232777,1775026257339,-1194.257938,0.00039726,120]
[419232778,1775026257348,-288.23131,0.00039726,120]
[419232779,1775026257358,-1940.200176,0.00039726,120]
[419232780,1775026257367,-1194.257938,0.00039726,120]
[419232781,1775026257377,-288.23131,0.00039726,120]
[419232782,1775026257386,-151.0,0.00039726,120]
[419232783,1775026257395,-1940.200176,0.00039726,120]
[419232784,1775026257404,-1194.257938,0.00039726,120]
[419232785,1775026257414,-288.23131,0.00039726,120]
[419232786,1775026257423,-151.0,0.00039726,120]
[419232787,1775026257432,-1940.200176,0.00039726,120]
[419232788,1775026257441,-1194.257938,0.00039726,120]
[419232789,1775026257451,-151.0,0.00039726,120]
[419232790,1775026257459,-151.992603,0.00039726,120]
[419232791,1775026257469,-288.23131,0.00039726,120]
[419232792,1775026257478,-2367.678133,0.00039726,120]
[419232793,1775026257488,-151.992603,0.00039726,120]
[419232794,1775026257497,-2367.678133,0.00039726,120]
[419232795,1775026257506,-288.23131,0.00039726,120]
[419232796,1775026257515,-151.0,0.00039726,120]
[419232797,1775026257524,-151.992603,0.00039726,120]
[419232798,1775026257533,-288.23131,0.00039726,120]
[419232799,1775026257542,-2367.678133,0.00039726,120]
[419232800,1775026257551,-151.0,0.00039726,120]
[419232801,1775026257560,-151.992603,0.00039726,120]
[419232802,1775026257570,-2367.678133,0.00039726,120]
[419232803,1775026257579,-151.992603,0.00039726,120]
[419232804,1775026257589,-2367.678133,0.00039726,120]
[419232805,1775026257599,-1064.851919,0.00039726,120]
[419232806,1775026257608,-151.0,0.00039726,31]
[419232807,1775026257618,-151.992603,0.00039726,120]
[419232808,1775026257627,-2367.678133,0.00039726,120]
[419232809,1775026257636,-1064.851919,0.00039726,120]
[419232810,1775026257645,-151.0,0.00039726,31]
[419232811,1775026257654,-151.992603,0.00039726,120]
[419232812,1775026257663,-2367.678133,0.00039726,120]
[419232813,1775026257673,-151.992603,0.00039726,120]
[419232814,1775026257682,-1064.851919,0.00039726,120]
[419232815,1775026257692,-2367.678133,0.00039726,120]
[419232816,1775026257701,-151.0,0.00039726,31]
[419232817,1775026257711,-1064.851919,0.00039726,120]
[419232818,1775026257720,-151.0,0.00039726,31]
[419232819,1775026257730,-1064.851919,0.00039726,120]
[419232820,1775026257741,-151.0,0.00039726,31]
[419232821,1775026257751,-1064.851919,0.00039726,120]
[419232822,1775026257762,-151.0,0.00039726,31]
[419232823,1775026257772,-270.000816,0.00039726,120]
[419232824,1775026257781,-270.000816,0.00039726,120]
[419232825,1775026257791,-1064.851919,0.00039726,120]
[419232826,1775026257800,-151.0,0.00039726,31]
[419232827,1775026257809,-1064.851919,0.00039726,120]
[419232828,1775026257818,-151.0,0.00039726,31]
[419232829,1775026257828,-270.000816,0.00039726,120]
[419232830,1775026257838,-270.000816,0.00039726,120]
[419232831,1775026257847,-151.0,0.00039726,15]
[419232832,1775026257857,-270.000816,0.00039726,120]
[419232833,1775026257867,-151.0,0.00039726,15]
[419232834,1775026257877,-270.000816,0.00039726,120]
[419232835,1775026257887,-6837.039976,0.00039726,120]
[419232836,1775026257896,-6837.039976,0.00039726,120]
[419232837,1775026257906,-187.912982,0.00039726,120]
[419232838,1775026257915,-151.0,0.00039726,15]
[419232839,1775026257924,-270.000816,0.00039726,120]
[419232840,1775026257934,-151.0,0.00039726,15]
[419232841,1775026257943,-187.912982,0.00039726,120]
[419232842,1775026257953,-270.000816,0.00039726,120]
[419232843,1775026257962,-6837.039976,0.00039726,120]
[419232844,1775026257971,-6837.039976,0.00039726,120]
[419232845,1775026257981,-195.047382,0.00039726,15]
[419232846,1775026257990,-187.912982,0.00039726,120]
[419232847,1775026258001,-187.912982,0.00039726,120]
[419232848,1775026258010,-6837.039976,0.00039726,120]
[419232849,1775026258021,-6837.039976,0.00039726,120]
[419232850,1775026258030,-187.912982,0.00039726,120]
[419232851,1775026258040,-187.912982,0.00039726,120]
[419232852,1775026258050,-6837.039976,0.00039726,120]
[419232853,1775026258060,-6837.039976,0.00039726,120]
[419232854,1775026258069,-187.912982,0.00039726,120]
[419232855,1775026258079,-187.912982,0.00039726,120]
[419232856,1775026258088,-309.815148,0.00039726,120]
[419232857,1775026258097,-309.815148,0.00039726,120]
[419232858,1775026258107,-309.815148,0.00039726,120]
[419232859,1775026258118,-309.815148,0.00039726,120]
[419232860,1775026258128,-309.815148,0.00039726,120]
[419232861,1775026258138,-309.815148,0.00039726,120]
[419232862,1775026258147,-423.578903,0.00039726,120]
[419232863,1775026258157,-423.578903,0.00039726,120]
[419232864,1775026258166,-309.815148,0.00039726,120]
[419232865,1775026258176,-309.815148,0.00039726,120]
[419232866,1775026258185,-423.578903,0.00039726,120]
[419232867,1775026258195,-423.578903,0.00039726,120]
[419232868,1775026258205,-423.578903,0.00039726,120]
[419232869,1775026258214,-2803.308424,0.00039726,120]
[419232870,1775026258224,-423.578903,0.00039726,120]
[419232871,1775026258233,-2803.308424,0.00039726,120]
[419232872,1775026258243,-630.133786,0.00039726,120]
[419232873,1775026258252,-630.133786,0.00039726,120]
[419232874,1775026258262,-2803.308424,0.00039726,120]
[419232875,1775026258271,-423.578903,0.00039726,120]
[419232876,1775026258281,-2803.308424,0.00039726,120]
[419232877,1775026258290,-423.578903,0.00039726,120]
[419232878,1775026258299,-630.133786,0.00039726,120]
[419232879,1775026258309,-630.133786,0.00039726,120]
[419232880,1775026258318,-2803.308424,0.00039726,120]
[419232881,1775026258327,-2803.308424,0.00039726,120]
[419232882,1775026258336,-630.133786,0.00039726,120]
[419232883,1775026258345,-630.133786,0.00039726,120]
[419232884,1775026258355,-2803.308424,0.00039726,120]
[419232885,1775026258364,-953.674111,0.00039726,120]
[419232886,1775026258374,-2803.308424,0.00039726,120]
[419232887,1775026258383,-953.674111,0.00039726,120]
[419232888,1775026258392,-630.133786,0.00039726,120]
[419232889,1775026258402,-630.133786,0.00039726,120]
[419232890,1775026258411,-953.674111,0.00039726,120]
[419232891,1775026258421,-953.674111,0.00039726,120]
[419232892,1775026258430,-9593.265937,0.00039726,2]
[419232893,1775026258440,-151.0,0.00039726,120]
[419232894,1775026258449,-9593.265937,0.00039726,2]
[419232895,1775026258459,-953.674111,0.00039726,120]
[419232896,1775026258468,-151.0,0.00039726,120]
[419232897,1775026258477,-953.674111,0.00039726,120]
[419232898,1775026258487,-468.586646,0.00039726,120]
[419232899,1775026258496,-953.674111,0.00039726,120]
[419232900,1775026258505,-9593.265937,0.00039726,2]
[419232901,1775026258520,-468.586646,0.00039726,120]
[419232902,1775026258530,-953.674111,0.00039726,120]
[419232903,1775026258539,-9593.265937,0.00039726,2]
[419232904,1775026258549,-9593.265937,0.00039726,2]
[419232905,1775026258559,-468.586646,0.00039726,120]
[419232906,1775026258568,-9593.265937,0.00039726,2]
[419232907,1775026258578,-468.586646,0.00039726,120]
[419232908,1775026258588,-151.0,0.00039726,120]
[419232909,1775026258598,-9593.265937,0.00039726,2]
[419232910,1775026258607,-468.586646,0.00039726,120]
[419232911,1775026258618,-151.0,0.00039726,120]
[419232912,1775026258627,-9593.265937,0.00039726,2]
[419232913,1775026258637,-468.586646,0.00039726,120]
[419232914,1775026258650,-150.0,0.00039775,120]
[419232915,1775026258659,-1000.0,0.00039871,7]
[419232916,1775026258669,-151.0,0.00039933,60]
[419232917,1775026258682,-400.0,0.0003997,2]
[419232918,1775026258691,-2499.99,0.0004,120]
[419232919,1775026258701,-150.0,0.0004,120]
[419232920,1775026258711,-347.29743264,0.0004,120]
[419232921,1775026258721,-3125.49435272,0.0004,120]
[419232922,1775026258732,-160.0,0.0004,120]
[419232923,1775026258741,-718.92,0.0004,120]
[419232924,1775026258751,-2499.99,0.0004,120]
[419232925,1775026258761,-2499.96,0.0004,120]
[419232926,1775026258771,-2500.0,0.0004,120]
[419232927,1775026258780,-2499.99,0.0004,120]
[419232928,1775026258790,-2500.0,0.0004,120]
[419232929,1775026258799,-4563.84,0.0004,30]
[419232930,1775026258809,-4988.76,0.0004,30]
[419232931,1775026258818,-153.0,0.0004,120]
[419232932,1775026258828,-151.51,0.0004,2]
[419232933,1775026258838,-151.51,0.0004,2]
[419232934,1775026258847,-151.51,0.0004,2]
[419232935,1775026258856,-151.51,0.0004,2]
[419232936,1775026258866,-151.51,0.0004,2]
[419232937,1775026258875,-151.51,0.0004,2]
[419232938,1775026258884,-151.51,0.0004,2]
[419232939,1775026258894,-151.51,0.0004,2]
[419232940,1775026258903,-151.51,0.0004,2]
[419232941,1775026258913,-151.51,0.0004,2]
[419232942,1775026258922,-151.51,0.0004,2]
[419232943,1775026258931,-151.51,0.0004,2]
[419232944,1775026258940,-151.51,0.0004,2]
[419232945,1775026258949,-151.51,0.0004,2]
[419232946,1775026258960,-151.51,0.0004,2]
[419232947,1775026258969,-151.51,0.0004,2]
[419232948,1775026258978,-151.51,0.0004,2]
[419232949,1775026258989,-151.51,0.0004,2]
[419232950,1775026258998,-151.51,0.0004,2]
[419232951,1775026259008,-151.51,0.0004,2]
[419232952,1775026259017,-151.51,0.0004,2]
[419232953,1775026259026,-151.51,0.0004,2]
[419232954,1775026259035,-151.51,0.0004,2]
[419232955,1775026259044,-151.51,0.0004,2]
[419232956,1775026259054,-151.51,0.0004,2]
[419232957,1775026259063,-151.51,0.0004,2]
[419232958,1775026259072,-151.51,0.0004,2]
[419232959,1775026259081,-151.51,0.0004,2]
[419232960,1775026259091,-151.51,0.0004,2]
[419232961,1775026259100,-151.51,0.0004,2]
[419232962,1775026259109,-151.51,0.0004,2]
[419232963,1775026259119,-151.51,0.0004,2]
[419232964,1775026259129,-151.51,0.0004,2]
[419232965,1775026259138,-151.51,0.0004,2]
[419232966,1775026259148,-151.51,0.0004,2]
[419232967,1775026259158,-151.51,0.0004,2]
[419232968,1775026259167,-151.51,0.0004,2]
[419232969,1775026259177,-151.51,0.0004,2]
[419232970,1775026259187,-151.51,0.0004,2]
[419232971,1775026259197,-151.51,0.0004,2]
[419232972,1775026259207,-151.51,0.0004,2]
[419232973,1775026259218,-151.51,0.0004,2]
[419232974,1775026259228,-151.51,0.0004,2]
[419232975,1775026259237,-151.51,0.0004,2]
[419232976,1775026259247,-151.51,0.0004,2]
[419232977,1775026259256,-151.51,0.0004,2]
[419232978,1775026259266,-151.51,0.0004,2]
[419232979,1775026259275,-414.11890778,0.00040019,2]
[419232980,1775026259284,-150.0,0.00040165,2]
[419232981,1775026259294,-298.0,0.00040215,2]
[419232982,1775026259303,-2000.0,0.000403,7]
[419232983,1775026259312,-500.0,0.00040313,120]
[419232984,1775026259321,-298.0,0.00040337,2]
[419232985,1775026259330,-298.0,0.00040395,30]
[419232986,1775026259339,-2000.0,0.000404,2]
[419232987,1775026259348,-1000.0,0.0004041,7]
[419232988,1775026259357,-670.0,0.00040412,30]
[419232989,1775026259366,-288.0,0.00040412,30]
[419232990,1775026259373,-398.25355257,0.00040434,2]
[419232991,1775026259381,-483.0,0.00040438,30]
[419232992,1775026259388,-765.0,0.00040438,30]
[419232993,1775026259395,-2411.0,0.00040438,30]
[419232994,1775026259401,-152.0,0.00040492,9]
[419232995,1775026259407,-2500.0,0.000405,120]
[419232996,1775026259414,-1000.0,0.00040564,7]
[419232997,1775026259420,-30590.6693,0.000406,114]
[419232998,1775026259427,-1000.0,0.00040704,7]
[419232999,1775026259435,-1000.0,0.00040725,7]
[419233000,1775026259444,-150.0,0.0004085,120]
[419233001,1775026259454,-150.0,0.0004085,120]
[419233002,1775026259463,-1000.0,0.00040851,7]
[419233003,1775026259472,-500.0,0.00040859,2]
[419233004,1775026259482,-190.26994094,0.000409,30]
[419233005,1775026259491,-153.0,0.000409,120]
[419233006,1775026259500,-205.572827,0.000409,20]
[419233007,1775026259509,-213.0,0.0004093,30]
[419233008,1775026259519,-151.0,0.00040933,60]
[419233009,1775026259528,-352.0,0.0004095,60]
[419233010,1775026259537,-1000.0,0.0004095,60]
[419233011,1775026259546,-288.05924458,0.0004095,60]
[419233012,1775026259556,-350.0,0.00040971,6]
[419233013,1775026259565,-250.0,0.00040983,87]
[419233014,1775026259575,-150.0,0.00041,120]
[419233015,1775026259587,-2500.0,0.00041,120]
[419233016,1775026259598,-5411.34,0.00041,30]
[419233017,1775026259608,-7372.07543288,0.00041,30]
[419233018,1775026259619,-6075.73,0.00041,60]
[419233019,1775026259628,-512.38805655,0.00041,120]
[419233020,1775026259638,-162.0,0.00041006,11]
[419233021,1775026259650,-151.0,0.00041029,30]
[419233022,1775026259660,-1096.6,0.00041041,30]
[419233023,1775026259670,-1000.0,0.00041059,7]
[419233024,1775026259680,-1447.6,0.00041068,120]
[419233025,1775026259690,-350.0,0.00041089,7]
[419233026,1775026259699,-249.0,0.00041096,30]
[419233027,1775026259708,-150.0,0.00041096,30]
[419233028,1775026259717,-200.0,0.00041096,30]
[419233029,1775026259726,-856.0,0.00041096,120]
[419233030,1775026259735,-150.0,0.00041096,10]
[419233031,1775026259746,-2000.0,0.00041096,60]
[419233032,1775026259756,-2000.0,0.00041096,60]
[419233033,1775026259766,-2000.0,0.00041096,60]
[419233034,1775026259777,-2000.0,0.00041096,60]
[419233035,1775026259787,-2000.0,0.00041096,60]
[419233036,1775026259798,-2000.0,0.00041096,60]
[419233037,1775026259809,-2000.0,0.00041096,60]
[419233038,1775026259820,-2000.0,0.00041096,60]
[419233039,1775026259829,-2000.0,0.00041096,60]
[419233040,1775026259839,-2719.0,0.00041096,60]
[419233041,1775026259848,-150.0,0.00041096,10]
[419233042,1775026259858,-2037.20340833,0.00041096,10]
[419233043,1775026259868,-151.0,0.00041096,120]
[419233044,1775026259877,-290.252414,0.00041096,120]
[419233045,1775026259887,-1000.0,0.00041096,60]
[419233046,1775026259898,-681.0,0.00041096,60]
[419233047,1775026259908,-1131.0,0.00041096,120]
[419233048,1775026259917,-306.45397,0.00041096,120]
[419233049,1775026259926,-306.45397,0.00041096,120]
[419233050,1775026259936,-306.45397,0.00041096,120]
[419233051,1775026259945,-306.45397,0.00041096,120]
[419233052,1775026259954,-306.45397,0.00041096,120]
[419233053,1775026259964,-306.45397,0.00041096,120]
[419233054,1775026259973,-306.45397,0.00041096,120]
[419233055,1775026259982,-306.45397,0.00041096,120]
[419233056,1775026259991,-500.0,0.00041096,120]
[419233057,1775026260000,-500.0,0.00041096,120]
[419233058,1775026260010,-500.0,0.00041096,120]
[419233059,1775026260019,-500.0,0.00041096,120]
[419233060,1775026260028,-500.0,0.00041096,120]
[419233061,1775026260037,-1004.34,0.00041096,120]
[419233062,1775026260046,-1000.0,0.0004116,14]
[419233063,1775026260055,-347.29743264,0.000412,120]
[419233064,1775026260064,-3125.49435272,0.000412,120]
[419233065,1775026260074,-160.0,0.000412,120]
[419233066,1775026260084,-1000.0,0.0004122,14]
[419233067,1775026260093,-1000.0,0.00041237,14]
[419233068,1775026260104,-1000.0,0.00041259,14]
[419233069,1775026260113,-801.714845,0.00041259,120]
[419233070,1775026260123,-155.978284,0.00041259,120]
[419233071,1775026260132,-801.714845,0.00041259,120]
[419233072,1775026260141,-801.714845,0.00041259,120]
[419233073,1775026260151,-151.0,0.00041259,120]
[419233074,1775026260160,-1063.966388,0.00041259,120]
[419233075,1775026260170,-151.0,0.00041259,120]
[419233076,1775026260179,-1063.966388,0.00041259,120]
[419233077,1775026260188,-671.201111,0.00041259,120]
[419233078,1775026260197,-801.714845,0.00041259,120]
[419233079,1775026260207,-151.0,0.00041259,120]
[419233080,1775026260216,-151.0,0.00041259,120]
[419233081,1775026260225,-1063.966388,0.00041259,120]
[419233082,1775026260234,-671.201111,0.00041259,120]
[419233083,1775026260244,-1235.645922,0.00041259,120]
[419233084,1775026260253,-151.0,0.00041259,120]
[419233085,1775026260262,-1063.966388,0.00041259,120]
[419233086,1775026260271,-671.201111,0.00041259,120]
[419233087,1775026260280,-1235.645922,0.00041259,120]
[419233088,1775026260289,-151.0,0.00041259,120]
[419233089,1775026260298,-671.201111,0.00041259,120]
[419233090,1775026260307,-151.0,0.00041259,120]
[419233091,1775026260316,-1235.645922,0.00041259,120]
[419233092,1775026260326,-151.0,0.00041259,120]
[419233093,1775026260335,-1235.645922,0.00041259,120]
[419233094,1775026260344,-151.0,0.00041259,120]
[419233095,1775026260353,-151.0,0.00041259,120]
[419233096,1775026260362,-189.52906,0.00041259,120]
[419233097,1775026260371,-151.0,0.00041259,120]
[419233098,1775026260380,-189.52906,0.00041259,120]
[419233099,1775026260390,-189.52906,0.00041259,120]
[419233100,1775026260399,-177.154029,0.00041259,120]
[419233101,1775026260408,-189.52906,0.00041259,120]
[419233102,1775026260417,-177.154029,0.00041259,120]
[419233103,1775026260427,-177.154029,0.00041259,120]
[419233104,1775026260436,-177.154029,0.00041259,120]
[419233105,1775026260445,-559.055511,0.00041259,120]
[419233106,1775026260454,-1879.674718,0.00041259,120]
[419233107,1775026260463,-559.055511,0.00041259,120]
[419233108,1775026260472,-1879.674718,0.00041259,120]
[419233109,1775026260482,-321.9781,0.00041259,120]
[419233110,1775026260490,-151.0,0.00041259,120]
[419233111,1775026260499,-559.055511,0.00041259,120]
[419233112,1775026260509,-1879.674718,0.00041259,120]
[419233113,1775026260518,-321.9781,0.00041259,120]
[419233114,1775026260527,-151.0,0.00041259,120]
[419233115,1775026260537,-663.501084,0.00041259,120]
[419233116,1775026260546,-559.055511,0.00041259,120]
[419233117,1775026260555,-1879.674718,0.00041259,120]
[419233118,1775026260564,-321.9781,0.00041259,120]
[419233119,1775026260578,-663.501084,0.00041259,120]
[419233120,1775026260588,-151.0,0.00041259,120]
[419233121,1775026260597,-663.501084,0.00041259,120]
[419233122,1775026260607,-321.9781,0.00041259,120]
[419233123,1775026260617,-663.501084,0.00041259,120]
[419233124,1775026260627,-151.0,0.00041259,120]
[419233125,1775026260637,-151.0,0.00041259,120]
[419233126,1775026260646,-4126.945995,0.00041259,120]
[419233127,1775026260656,-342.803973,0.00041259,120]
[419233128,1775026260665,-173.232924,0.00041259,120]
[419233129,1775026260677,-4126.945995,0.00041259,120]
[419233130,1775026260687,-342.803973,0.00041259,120]
[419233131,1775026260696,-4126.945995,0.00041259,120]
[419233132,1775026260706,-342.803973,0.00041259,120]
[419233133,1775026260715,-4126.945995,0.00041259,120]
[419233134,1775026260724,-342.803973,0.00041259,120]
[419233135,1775026260733,-151.0,0.00041259,120]
[419233136,1775026260743,-505.0,0.00041275,26]
[419233137,1775026260754,-214.20886618,0.00041323,14]
[419233138,1775026260763,-1000.0,0.00041344,14]
[419233139,1775026260774,-800.0,0.00041369,120]
[419233140,1775026260784,-800.0,0.00041369,120]
[419233141,1775026260796,-800.0,0.00041369,120]
[419233142,1775026260806,-800.0,0.00041369,120]
[419233143,1775026260817,-167.64776117,0.00041369,120]
[419233144,1775026260826,-2500.0,0.00041369,120]
[419233145,1775026260836,-2500.0,0.00041369,120]
[419233146,1775026260845,-1056.1460868,0.00041369,120]
[419233147,1775026260855,-856.0,0.0004137,120]
[419233148,1775026260865,-1004.34,0.0004137,120]
[419233149,1775026260875,-1000.0,0.00041385,14]
[419233150,1775026260884,-500.0,0.00041462,26]
[419233151,1775026260894,-500.0,0.00041462,26]
[419233152,1775026260904,-500.0,0.00041462,26]
[419233153,1775026260914,-500.0,0.00041462,26]
[419233154,1775026260925,-500.0,0.00041462,26]
[419233155,1775026260939,-500.0,0.00041462,26]
[419233156,1775026260951,-500.0,0.00041462,26]
[419233157,1775026260964,-500.0,0.00041462,26]
[419233158,1775026260976,-500.0,0.00041462,26]
[419233159,1775026260989,-500.0,0.00041462,26]
[419233160,1775026261000,-383.61,0.00041462,26]
[419233161,1775026261010,-200.0,0.00041509,120]
[419233162,1775026261021,-1000.0,0.00041572,14]
[419233163,1775026261032,-151.0,0.00041579,14]
[419233164,1775026261044,-300.0,0.0004158,120]
[419233165,1775026261055,-300.0,0.0004158,120]
[419233166,1775026261067,-150.0,0.0004158,120]
[419233167,1775026261082,-150.0,0.0004158,120]
[419233168,1775026261093,-1100.0,0.00041582,120]
[419233169,1775026261106,-500.0,0.000416,120]
[419233170,1775026261117,-1000.0,0.00041605,14]
[419233171,1775026261128,-856.0,0.00041644,120]
[419233172,1775026261141,-250.0,0.00041644,10]
[419233173,1775026261153,-1000.0,0.00041644,10]
[419233174,1775026261167,-1004.34,0.00041644,120]
[419233175,1775026261179,-900.0,0.00041671,15]
[419233176,1775026261191,-236.07521058,0.00041673,2]
[419233177,1775026261203,-500.0,0.00041767,30]
[419233178,1775026261214,-1000.0,0.00041779,14]
[419233179,1775026261226,-153.0,0.000418,120]
[419233180,1775026261237,-346.97,0.00041815,120]
[419233181,1775026261251,-208.75390061,0.0004183,120]
[419233182,1775026261263,-1200.0,0.00041856,120]
[419233183,1775026261276,-2000.0,0.000419,7]
[419233184,1775026261287,-1000.0,0.0004191,14]
[419233185,1775026261296,-856.0,0.00041918,120]
[419233186,1775026261309,-200.0,0.00041918,10]
[419233187,1775026261321,-1004.34,0.00041918,120]
[419233188,1775026261334,-630.79,0.00041919,90]
[419233189,1775026261347,-150.0,0.00041925,120]
[419233190,1775026261359,-151.0,0.00041933,60]
[419233191,1775026261371,-150.0,0.00041935,14]
[419233192,1775026261383,-152.0,0.00041955,10]
[419233193,1775026261395,-1000.0,0.00041975,60]
[419233194,1775026261407,-200.0,0.00042,120]
[419233195,1775026261419,-500.0,0.00042,120]
[419233196,1775026261431,-300.0,0.00042,7]
[419233197,1775026261443,-574.0,0.00042,120]
[419233198,1775026261454,-1021.3660841,0.00042,120]
[419233199,1775026261466,-4229.9503588,0.00042,120]
[419233200,1775026261477,-242.4531716,0.00042,120]
[419233201,1775026261487,-154.77,0.00042,120]
[419233202,1775026261497,-441.65465912,0.00042,30]
[419233203,1775026261507,-38955.2637,0.00042,120]
[419233204,1775026261518,-500.0,0.00042,120]
[419233205,1775026261528,-500.0,0.00042041,30]
[419233206,1775026261541,-391.0,0.00042087,5]
[419233207,1775026261553,-151.0,0.00042114,14]
[419233208,1775026261563,-439.67766913,0.00042116,2]
[419233209,1775026261572,-521.57619441,0.00042116,2]
[419233210,1775026261584,-307.98682159,0.00042116,2]
[419233211,1775026261596,-300.0,0.00042116,2]
[419233212,1775026261608,-417.89282888,0.00042116,2]
[419233213,1775026261621,-300.0,0.00042116,2]
[419233214,1775026261632,-1088.17745011,0.00042116,2]
[419233215,1775026261644,-300.0,0.00042116,2]
[419233216,1775026261655,-300.0,0.00042116,2]
[419233217,1775026261668,-300.0,0.00042116,2]
[419233218,1775026261680,-301.3902486,0.00042116,2]
[419233219,1775026261690,-300.0,0.00042116,2]
[419233220,1775026261700,-300.0,0.00042116,2]
[419233221,1775026261710,-300.0,0.00042116,2]
[419233222,1775026261730,-600.87455597,0.00042116,2]
[419233223,1775026261749,-300.0,0.00042116,2]
[419233224,1775026261761,-300.0,0.00042116,2]
[419233225,1775026261773,-300.0,0.00042116,2]
[419233226,1775026261785,-511.54454058,0.00042116,2]
[419233227,1775026261798,-898.55637842,0.00042116,2]
[419233228,1775026261810,-914.00804146,0.00042116,2]
[419233229,1775026261822,-1060.59968985,0.00042116,2]
[419233230,1775026261834,-540.12382875,0.00042116,2]
[419233231,1775026261846,-300.0,0.00042116,2]
[419233232,1775026261859,-300.02131866,0.00042116,2]
[419233233,1775026261872,-300.0,0.00042116,2]
[419233234,1775026261884,-300.0,0.00042116,2]
[419233235,1775026261896,-1000.0,0.00042116,2]